Cogmind - Beta 14 @@@ ROGUE MODE // 2024.09.01 @ 07:59:39 Player: Dosh Result: Destroyed by Autobeam Turret with Autobeam Performance ------------- Evolutions (0) 0 Regions Visited (2) 400 Robots Destroyed (32) 160 Value Destroyed (868) 868 Prototype IDs (0) 0 Alien Tech Used (0) 0 Bonus (0) 0 TOTAL SCORE: 1428 Bonus ------- None Cogmind --------- Core Integrity 0/250 Matter 300/300 Energy 248/250 System Corruption 0% Temperature Cool (7) Movement Treading (240) Ox1 Location -10/Subcaves Parts ------- > --- POWER (1) -------- Ion Engine > --- PROPULSION (2) --- Light Treads > --- UTILITY (2) ------ Large Storage Unit Core Shielding > --- WEAPON (2) ------- Subdweller Machine Gun Makeshift Shrapnel Gun > --- INVENTORY (15) --- Wheel Improved Heat Sink Huge Storage Unit Subdweller Optics Seismic Detector Light Armor Plating Hacking Suite Hacking Suite Assault Rifle Assault Rifle Subdweller Machine Gun Grenade Launcher Datajack Peak State ------------ > --- POWER ------------ Ion Engine > --- PROPULSION ------- Light Treads Light Treads > --- UTILITY ---------- Large Storage Unit Core Shielding > --- WEAPON ----------- Subdweller Machine Gun Makeshift Shrapnel Gun > --- INVENTORY -------- Wheel Improved Heat Sink Huge Storage Unit Subdweller Optics Seismic Detector Light Armor Plating Hacking Suite Hacking Suite Assault Rifle Assault Rifle Subdweller Machine Gun Grenade Launcher Datajack [Rating: 13] Favorites ----------- Power Light Ion Engine Engine Light Ion Engine Propulsion Light Treads Treads Light Treads Utility Large Storage Unit Device Improved Heat Sink Storage Large Storage Unit Protection Core Shielding Weapon Assault Rifle Ballistic Gun Assault Rifle Launcher Grenade Launcher Special Melee Weapon Datajack Build | -11 -10 -10 ------- Run | Yrd Mat Sub Slots Evolved . | . . . Power . | . . . Propulsion . | . . . Utility . | . . . Weapon . | . . . Parts Attached 25 | 6 6 13 Power 2 | 1 . 1 Engine 2 | 1 . 1 Core . | . . . Reactor . | . . . Propulsion 3 | 2 . 1 Treads 3 | 2 . 1 Leg . | . . . Wheel . | . . . Hover . | . . . Flight . | . . . Utility 9 | 1 4 4 Device 3 | . 1 2 Storage 2 | 1 1 . Processor . | . . . Hackware . | . . . Protection 4 | . 2 2 Artifact . | . . . Weapon 11 | 2 2 7 Energy Gun . | . . . Energy Cannon . | . . . Ballistic Gun 9 | 2 1 6 Ballistic Cannon . | . . . Launcher 1 | . . 1 Special Weapon . | . . . Impact Weapon . | . . . Slashing Weapon . | . . . Piercing Weapon . | . . . Special Melee Weapon 1 | . 1 . Unidentified Prototypes . | . . . Parts Lost 5 | . . 5 Power 1 | . . 1 Propulsion 2 | . . 2 Utility . | . . . Weapon 2 | . . 2 Highest Loss Streak 2 | . . 2 To Critical Strikes . | . . . Average Slot Usage (%) 94 | . 98 90 Engine 14 | . 14 14 Treads 23 | . 28 19 Device 2 | . 2 2 Storage 14 | . 14 14 Protection 10 | . 9 11 Ballistic Gun 27 | . 27 27 Peak Build Rating 13 | 6 9 13 Average Rating 9 | 4 7 10 On Entrance 4 | . 6 8 Naked Turns . | . . . Heaviest Build 33 | 12 30 33 Greatest Support 40 | 40 40 40 Greatest Overweight (x) 1 | . . 1 Average Overweight (x) . | . . . Largest Inventory Capacity 15 | 8 15 15 Average Capacity 14 | 6 13 15 Most Carried 15 | 1 12 15 Average Carried 10 | . 7 13 Final Capacity 15 | 8 15 15 Final Carried 13 | 1 12 13 Class Distribution -------------------- 100% | Mutant Dominant Class ---------------- Mutant | -10/Materials Mutant | -10/Subcaves Resources | -11 -10 -10 ----------- Run | Yrd Mat Sub Matter Collected 1000 | 260 400 340 Remotely . | . . . Salvage Created 1170 | . 873 297 Parts 75 | . 52 23 Haulers Intercepted 2 | . 2 . Recyclers Shooed 2 | . 2 . Parts Field Recycled . | . . . Retrieved Matter . | . . . Parts Self-Destructed 14 | . . 14 Prevented . | . . . Kills | -11 -10 -10 ------- Run | Yrd Mat Sub Combat Hostiles Destroyed 22 | . 12 10 Guns 21 | . 12 9 AOE 1 | . . 1 Classes Destroyed 9 | . 6 3 Builder 1 | . 1 . Hauler 2 | . 2 . Recycler 2 | . 2 . Operator 2 | . 2 . Watcher 3 | . 3 . Swarmer 3 | . . 3 Grunt 12 | . 12 . Artisan 2 | . . 2 Subdweller 7 | . . 7 Best Kill Streak 6 | . 6 3 Combat Bots Only 3 | . 2 3 Max Kills in Single Turn 1 | . 1 1 Gunslinging . | . . . Exploded 1 | . . 1 Melee . | . . . Uniques/NPCs Destroyed . | . . . Combat | -11 -10 -10 -------- Run | Yrd Mat Sub Hostile Shots Fired 107 | . 33 74 Missed 39 | . 15 24 Damage Taken 1138 | . 221 917 Core 250 | . 55 195 Absorbed by Shields . | . . . Redirected to Shielding 44 | . 7 37 Core Remaining (%) 100 | 100 . . Volleys Fired 91 | . 58 33 Largest 2 | . 2 2 Hottest 54 | . 40 54 Shots Fired 180 | . 116 64 Gun 174 | . 116 58 Cannon . | . . . Launcher 6 | . . 6 Special . | . . . Kinetic 174 | . 116 58 Thermal . | . . . Explosive 6 | . . 6 Electromagnetic . | . . . Robot Hit Streak 25 | . 11 25 Robot Miss Streak 4 | . 3 4 Penetration Max . | . . . Secondary Targets 3 | . 1 2 Max Gunslinging Chain 1 | . 1 1 Shots Hit Robots 117 | . 74 43 Core Hits 60 | . 41 19 Critical Kills . | . . . Critical Parts Destroyed . | . . . Critical Strikes . | . . . Melee Attacks . | . . . Impact . | . . . Slashing . | . . . Piercing . | . . . Sneak Attacks . | . . . Combat Hostiles . | . . . Follow-up Attacks . | . . . Damage Inflicted 1887 | . 950 937 Guns 1466 | . 942 524 Cannons . | . . . Explosions 413 | . . 413 Melee . | . . . Ramming 8 | . 8 . Kinetic 1466 | . 942 524 Thermal . | . . . Explosive 413 | . . 413 Electromagnetic . | . . . Impact . | . . . Slashing . | . . . Piercing . | . . . Highest Corruption . | . . . Average Corruption . | . . . Corruption Purged . | . . . Corruption Blocked . | . . . Overload Shots . | . . . Overflow Damage . | . . . Projectiles . | . . . Explosions . | . . . Melee . | . . . Knockbacks . | . . . Impact . | . . . Kinetic . | . . . Secondary . | . . . Self-Inflicted Damage . | . . . Shots . | . . . Rammed 3 | . 3 . Targets Rammed 3 | . 3 . Kicked . | . . . Crushed . | . . . Highest Temperature 2 | . 2 . Average Temperature 2 | . 2 . Received Heat Transfer 213 | . 129 84 Siege Activations . | . . . Robots Corrupted . | . . . Combat Hostiles . | . . . Parts Fried . | . . . Impact Corruptions . | . . . Robots Melted . | . . . Combat Hostiles . | . . . Parts Melted . | . . . Heat Transferred . | . . . Parts Sabotaged . | . . . Parts Stolen . | . . . Parts Stripped . | . . . Power Chain Reactions . | . . . Alert | -11 -10 -10 ------- Run | Yrd Mat Sub Peak Influence 175 | . 175 . Initial . | . . . Average 61 | . 63 . Maximum Alert Level . | . . . Low Security (%) 100 | 100 100 . Level 1 . | . . . Level 2 . | . . . Level 3 . | . . . Level 4 . | . . . Level 5 . | . . . High Security . | . . . Max Security . | . . . Squads Dispatched 3 | . 3 . Investigation 1 | . 1 . Extermination . | . . . Reinforcement 2 | . 2 . Assault . | . . . Garrison . | . . . Intercept . | . . . Searches Triggered . | . . . Construction Impeded . | . . . Haulers Reinforced . | . . . Active Scanning Responses . | . . . Cargo Convoy Interrupts . | . . . Stealth | -11 -10 -10 --------- Run | Yrd Mat Sub Distress Signals . | . . . Communications Jammed . | . . . Distress Signals . | . . . Times Spotted 32 | . 21 11 Peak Tracking Total 4 | . 4 4 Tactical Retreats 1 | . . 1 Traps | -11 -10 -10 ------- Run | Yrd Mat Sub Traps Triggered 2 | . . 2 Indirectly . | . . . Trap Hack Attempts 13 | . 13 . Triggered . | . . . Disarmed . | . . . Reprogrammed 2 | . 2 . Reused . | . . . Traps Extracted . | . . . Installed . | . . . Triggered . | . . . Machines | -11 -10 -10 ---------- Run | Yrd Mat Sub Machines Disabled 1 | . 1 . Max in Single Turn 1 | . 1 . Machines Repaired . | . . . Machines Dismantled . | . . . Machines Sabotaged . | . . . Overloaded Fab Kills . | . . . Hacking | -11 -10 -10 --------- Run | Yrd Mat Sub Machines Accessed 8 | . 7 1 Terminals 6 | . 6 . Fabricators . | . . . Repair Stations . | . . . Recycling Units 1 | . 1 . Scanalyzers . | . . . Garrison Access . | . . . Total Hacks 25 | . 21 4 Successful 18 | . 14 4 Failed 6 | . 6 . Catastrophic 1 | . 1 . Database Lockouts 1 | . 1 . Manual 15 | . 15 . Terminals 20 | . 20 . Fabricators . | . . . Repair Stations . | . . . Recycling Units 1 | . 1 . Scanalyzers . | . . . Garrison Access . | . . . Terminal Hacks 11 | . 7 4 Record 4 | . . 4 Robot Schematic 1 | . 1 . Robot Analysis 3 | . 3 . Locate Traps 1 | . 1 . Dispatch Records 1 | . 1 . Hauler Manifests 1 | . 1 . Fabricator Hacks . | . . . Repair Station Hacks . | . . . Recycling Unit Hacks . | . . . Scanalyzer . | . . . Garrison Access Hacks . | . . . Unauthorized Hacks 7 | . 7 . Terminals 6 | . 6 . Botnet 1 | . 1 . Skim 5 | . 5 . Fabricators . | . . . Repair Stations . | . . . Recycling Units 1 | . 1 . Tunnel 1 | . 1 . Scanalyzers . | . . . Garrison Access . | . . . Data Cores Recovered . | . . . Used . | . . . Hacking Detections 4 | . 4 . Full Trace Events . | . . . Feedback Events . | . . . Feedback Blocked . | . . . Robot Schematics Acquired 1 | . 1 . Robots Built . | . . . Authchips . | . . . Time . | . . . Total Robot Build Rating . | . . . Part Schematics Acquired . | . . . Parts Built . | . . . Authchips . | . . . Time . | . . . Total Part Build Rating . | . . . Parts Repaired . | . . . Time . | . . . Parts Recycled . | . . . Recycled Matter . | . . . Retrieved Matter . | . . . Retrieved Components . | . . . Parts Scanalyzed . | . . . Part Schematics Acquired . | . . . Parts Damaged . | . . . Bothacking | -11 -10 -10 ------------ Run | Yrd Mat Sub Used RIF Installer . | . . . Robots Hacked . | . . . Non-combat . | . . . Combat . | . . . Robot Hacks Applied . | . . . Relay Couplers Released . | . . . Fabnet Peak Effective % . | . . . Robots Rewired . | . . . Allies Hacked . | . . . Hacks Repelled . | . . . Allies | -11 -10 -10 -------- Run | Yrd Mat Sub Total Allies . | . . . Largest Group . | . . . Highest-Rated Group . | . . . Highest-Rated Ally . | . . . Total Orders . | . . . Ally Attacks . | . . . Total Damage . | . . . Kills . | . . . Allies Corrupted . | . . . Allies Melted . | . . . Intel | -11 -10 -10 ------- Run | Yrd Mat Sub Robot Analysis Total 3 | . 3 . Derelict Logs Recovered 1 | . . 1 Drone Launches . | . . . Drone Recoveries . | . . . Exploration | -11 -10 -10 ------------- Run | Yrd Mat Sub Turns Passed 3792 | 56 1948 1788 Spaces Moved 1652 | 32 803 817 Core 4 | 4 . . Treads 1648 | 28 803 817 Legs . | . . . Wheels . | . . . Hover . | . . . Flight . | . . . Fastest Speed 50 | 50 160 160 Average Speed 180 | 146 160 202 Slowest Speed 240 | 160 160 240 Overloaded Moves . | . . . Propulsion Burnouts . | . . . Robots Hopped . | . . . Cave-ins Triggered . | . . . Exploration Rate (%) 44 | 3 95 35 Regions Visited 2 Branch Regions 1 Pre-discovered Areas 3 | . 3 . Known Exits Taken . | . . . Unknown Exits Taken 2 | 1 1 . Scrap Searched 3 | . . 3 Spaces Dug . | . . . Terrain Destroyed 16 | . . 16 Melee . | . . . Projectile . | . . . AOE 16 | . . 16 Terrain Rammed . | . . . Walls Destroyed . | . . . Machines Disabled . | . . . Actions | -11 -10 -10 --------- Run | Yrd Mat Sub Total 2268 | 38 1347 883 Wait 470 | . 453 17 Move 1650 | 31 802 817 Hop . | . . . Pick Up 13 | 1 10 2 Fast Attach 9 | 6 2 1 Attach 4 | . . 4 Detach 2 | . 1 1 Swap 12 | . 4 8 Drop 1 | . 1 . Fire 91 | . 58 33 Melee . | . . . Ram . | . . . Kick . | . . . Crush 3 | . 3 . Escape Stasis . | . . . Rewire . | . . . Trap 13 | . 13 . Miscellaneous . | . . . Route ------- -11/Scrapyard -10/Materials (discovered 6 exits: [*Mat x3] / [*Min x2] / *Sub) -10/Subcaves (discovered 3 exits: *Mat x2 / Rec) History --------- Turn | Location | Event 33 | -11/Scrapyard | Discovered new exit (range 14) 57 | -11/Scrapyard | Entered Materials 256 | -10/Materials | Central database locked down 305 | -10/Materials | Build established: Mutant 420 | -10/Materials | Discovered new exit (range 11) 489 | -10/Materials | Discovered new exit (range 5) 538 | -10/Materials | Discovered new exit (range 13) 821 | -10/Materials | Discovered new exit (range 15) 1548 | -10/Materials | Discovered new exit (range 16) 1714 | -10/Materials | Learned location of 1 exit from Recycling 1773 | -10/Materials | Learned Storage trap positions 1821 | -10/Materials | Learned location of 2 exits from Subcaves 1861 | -10/Materials | Loaded intel: 1 repair station location 1893 | -10/Materials | Learned Storage stockpile data 1975 | -10/Materials | Discovered new exit (range 9) 1984 | -10/Materials | Learned location of 2 exits from Mines 2005 | -10/Materials | Entered Subcaves 2006 | -10/Subcaves | Identified exit to Recycling 2006 | -10/Subcaves | Identified exit to Materials 2093 | -10/Subcaves | Visited Clippyterm 2098 | -10/Subcaves | Learned Research machine intel 2098 | -10/Subcaves | Learned Factory stockpile data 2196 | -10/Subcaves | Core integrity fell below 50% 2234 | -10/Subcaves | Ambushed by Subdwellers from Twisted Machinery 2310 | -10/Subcaves | A swath of the cavern ceiling suddenly collapsed 2429 | -10/Subcaves | Ambushed by angry Subdweller bent on revenge 2443 | -10/Subcaves | Core integrity fell below 20% 2471 | -10/Subcaves | Learned Materials terminal intel 2635 | -10/Subcaves | Discovered exit to Materials (range 5) 2699 | -10/Subcaves | Disturbed a concealed Subdweller 2755 | -10/Subcaves | Shifting Twisted Machinery released Flamer 2792 | -10/Subcaves | Shifting Twisted Machinery released Shrapnel Trap 3440 | -10/Subcaves | Ambushed by angry Subdweller bent on revenge 3793 | -10/Subcaves | Destroyed by Autobeam Turret with Autobeam Last Messages --------------- 03041_ PV-316(R) destroyed. 03075_ Acquired 23 matter. 03437_ ML-2S2(u) cries out in pain. 03437_ ML-2S2(u) destroyed. 03440_ 0U-SFR(R) angrily emerges from the Twisted Machinery. 03440_ 0U-SFR(R): "ECOKILL!" 03443_ Assault Rifle destroyed. 03447_ Lgt. Treads destroyed. 03449_ 0U-SFR(R) destroyed. 03452_ Acquired 15 matter. 03459_ Acquired 38 matter. 03781_ G8-JT7(z): "She is not going to be happy we haven't found any suitable candidates yet." 03784_ S-10 Pest destroyed. 03785_ Subatomizers dissect the Lgt. Assault Rifle. 03787_ S-10 Pest destroyed. 03787_ Switching to secondary target: S-10 Pest. 03790_ S-10 Pest destroyed. 03792_ Flight Unit fries itself beyond repair. 03793_ Acquired 21 matter. Map ----- +----------------------------------------------------+ | ?????????????????????????????????????????????????? | | ?????????????????????????????????????????????????? | | ?????????????????????????????????????????????????? | | ?????????????????????????????????????????????????? | | ?????????????????????????????????????????????????? | | ?????????????????????????????????????????????????? | | ?????????????????????????????????????????????????? | | ?????????????????????????????????????????????????? | | ?????????????????????????????????????????????????? | | ?????????????????????????????????????????????????? | | ?????????????????????????????????????????????????? | | ?????????????????????????????????????????????????? | | ?????????????????????????????????????????????????? | | ?????????????????????????????????????????????????? | | ?????????????????????????????????????????????????? | | ?????????????????????????????????????????????????? | | ?????????????????????????????????????????????????? | | ?????????????????????????????????????????????????? | | ?????????????????????????????????????????????????? | | ?????????????????????###?????????????????????????? | | ????????#######???#### #?????????? #????????????? | | ?????????" """ #### ##??????? ### ?????????? | | ???????" """ "" ### ##???? ?????????? | | ??????# " """ " ## #??# ???>????? | | ??????#"" " ## =## ?????????? | | ???????## " ##" # [@ #????????????????? | | ?????????????### ## [%*#### #?###????????????? | | ??????????????# #< ####??????# ##???????????? | | ??????????????# #??????### #???????????? | | ??????????????# #####?## #???????????? | | ??????????????# #<< #?# #???????????? | | ??????????????#####" ### #????????????? | | ??????????????????# #### #?????????????? | | ??????????????????## #### ##?????????????? | | ????????????????#### ## #??????????????? | | ########???????## ### #####??????????? | | # # ##??????# ## ### #??????????? | | #??????## ## #####??????? | | # ## #???????## # ##?????? | | ###### #??####### ## ##????? | | ####### #### # ###### # ##?### | | # ## # # #????# #### ### | | #???## ##??### | | ## # #### ### ##???# ########?# ### | | ########??# ##?######?# #### ######?## | | ??????????# ##### #### ### ####?# | | ??????????# ### # ### | | ??????????# ## | | ??????????# ## ##? | | ??????????#### ########## ###### #### ## # # #?? | +----------------------------------------------------+ Best States ------------- Heat Dissipation 39 Energy Generation 10 Energy Capacity 250 Matter Stores 300 Matter Capacity 300 Sight Range 21 Terrain Scan Density 10 Armor Coverage 150 Core Shielding 20 Evasion (%) 40 Recoil Reduction 2 Item Schematics ----------------- None Robot Schematics ------------------ M-13 Machinist | -10/Materials | Hacked Fabricated ------------ Nothing Alien Tech Used ----------------- None Achievements -------------- None Challenges ------------ None Game ------ Seed RecoilWeaponExtractor Manual? 0 Play Time 00:14:31 Cumulative 503.1 hours Start 2024.09.01 @ 07:49:22 End 2024.09.01 @ 07:59:39 Sessions 1 Manual Loads 0 Difficulty Rogue Special Mode None Game No. 296 Rogue 296 Adventurer 0 Explorer 0 Win Type - Total 36 Types 25/3/4/1/1/0/1/1/0 Lore% 80 Gallery% 85 Achievement% 85 Wizard Run 0 Options --------- Layout 0 ASCII 0 Keyboard 1 Movement Numpad Keybinds 0 Fullscreen 2 Font 18/SmallcapsGlow Map View 76x50 Zoom Use 0% Tactical HUD 1 Map Filters NONE Filters NONE Steam 1 RUN: 94de5b2f-8d4b-407e-8683-b043072ffd6b